Cogmind - Beta 15 @@@ ROGUE MODE // 2025.08.14 @ 21:23:59 Player: Dick Johnson Result: Destroyed by Y-54 Guardian with Flak Gun Performance ------------- Evolutions (0) 0 Regions Visited (3) 600 Robots Destroyed (18) 90 Value Destroyed (577) 577 Prototype IDs (11) 220 Alien Tech Used (0) 0 Bonus (0) 0 TOTAL SCORE: 1487 Bonus ------- None Cogmind --------- Core Integrity 0/250 Matter 181/300 Energy 100/100 System Corruption 0% Temperature Warm (173) Movement Walking (120) Location -7/Recycling Parts ------- > --- POWER (1) -------- (None) > --- PROPULSION (2) --- Carbon-fiber Leg Carbon-fiber Leg > --- UTILITY (2) ------ Small Storage Unit Sensor Array > --- WEAPON (2) ------- Battle Cannon Advanced Assault Cannon > --- INVENTORY (8) ---- Light Ion Engine Carbon-fiber Leg Carbon-fiber Leg Hover Unit Hover Unit Hover Unit Peak State ------------ > --- POWER ------------ Subdweller Power Source Subdweller Power Source > --- PROPULSION ------- Carbon-fiber Leg Carbon-fiber Leg > --- UTILITY ---------- Small Storage Unit Sensor Array > --- WEAPON ----------- Powered Cannon > --- INVENTORY -------- Carbon-fiber Leg Hover Unit Hover Unit Hover Unit Subdweller Laser Subdweller Beam Cannon Mining Laser [Rating: 27] Favorites ----------- Power Subdweller Power Source Engine Subdweller Power Source Power Core Micro Nuclear Core Propulsion Carbon-fiber Leg Leg Carbon-fiber Leg Wheel Wheel Utility Small Storage Unit Device Sensor Array Storage Small Storage Unit Processor Signal Interpreter Weapon Powered Cannon Energy Gun EM Pulse Gun Energy Cannon Powered Cannon Ballistic Gun Light Assault Rifle Ballistic Cannon Battle Cannon Special Weapon Mining Laser Build | -11 -10 -10 -7 ------- Run | Yrd Mat Sub Rec Slots Evolved . | . . . . Power . | . . . . Propulsion . | . . . . Utility . | . . . . Weapon . | . . . . Parts Attached 28 | 6 8 11 3 Power 9 | 1 2 5 1 Engine 8 | 1 2 5 . Core 1 | . . . 1 Reactor . | . . . . Propulsion 7 | 2 1 4 . Treads . | . . . . Leg 4 | . . 4 . Wheel 3 | 2 1 . . Hover . | . . . . Flight . | . . . . Utility 3 | 1 2 . . Device 1 | . 1 . . Storage 1 | 1 . . . Processor 1 | . 1 . . Hackware . | . . . . Protection . | . . . . Artifact . | . . . . Weapon 9 | 2 3 2 2 Energy Gun 1 | . 1 . . Energy Cannon 2 | . . 2 . Ballistic Gun 3 | 2 1 . . Ballistic Cannon 2 | . . . 2 Launcher . | . . . . Special Weapon 1 | . 1 . . Impact Weapon . | . . . . Slashing Weapon . | . . . . Piercing Weapon . | . . . . Special Melee Weapon . | . . . . Unidentified Prototypes . | . . . . Parts Lost 7 | . 1 4 2 Power 3 | . . 1 2 Propulsion 3 | . 1 2 . Utility . | . . . . Weapon 1 | . . 1 . Highest Loss Streak 4 | . 1 4 1 To Critical Strikes . | . . . . Average Backups 6 | 1 5 7 6 Power . | . 1 . 1 Propulsion 4 | . 2 4 5 Utility . | . . . . Weapon 1 | 1 2 2 . Tool/Special . | . . . . Unused Backups 10 | . 4 2 4 Power 1 | . . 1 . Propulsion 6 | . 2 . 4 Utility 1 | . 1 . . Weapon 2 | . 1 1 . Tool/Special . | . . . . Average Slot Usage (%) 90 | . 94 86 99 Engine 14 | . 14 17 5 Core 1 | . . . 8 Leg 19 | . . 24 28 Wheel 7 | . 28 2 . Device 12 | . 7 13 14 Storage 13 | . 14 13 14 Energy Gun 2 | . 7 . . Energy Cannon 8 | . . 11 7 Ballistic Gun 5 | . 19 3 . Ballistic Cannon 4 | . . . 20 Peak Build Rating 27 | 6 7 27 24 Average Rating 17 | 3 6 22 16 On Entrance 9 | . 6 7 24 Naked Turns . | . . . . Heaviest Build 25 | 11 13 25 23 Greatest Support 30 | 26 26 30 30 Greatest Overweight (x) 2 | . . 2 . Average Overweight (x) . | . . . . Largest Inventory Capacity 8 | 8 8 8 8 Average Capacity 7 | 6 8 8 8 Most Carried 8 | 5 8 8 8 Average Carried 6 | 2 5 7 6 Final Capacity 8 | 8 8 8 8 Final Carried 8 | 1 6 8 6 Class Distribution -------------------- 66% | Mutant 33% | Scavenger-Mutant Dominant Class ---------------- Mutant | -10/Materials Mutant | -10/Subcaves Mutant | -7/Recycling Resources | -11 -10 -10 -7 ----------- Run | Yrd Mat Sub Rec Matter Collected 638 | 236 158 204 40 Remotely . | . . . . Salvage Created 631 | . 230 350 51 Parts 51 | . 24 26 1 Haulers Intercepted . | . . . . Recyclers Shooed . | . . . . Parts Field Recycled . | . . . . Retrieved Matter . | . . . . Parts Self-Destructed 14 | . . 14 . Prevented . | . . . . Kills | -11 -10 -10 -7 ------- Run | Yrd Mat Sub Rec Combat Hostiles Destroyed 16 | . 7 8 1 Guns 11 | . 7 4 . Cannons 4 | . . 3 1 Classes Destroyed 5 | . 3 2 . Watcher 2 | . 2 . . Swarmer 3 | . 3 . . Grunt 4 | . 4 . . Sentry 2 | . . 1 1 Subdweller 7 | . . 7 . Best Kill Streak 4 | . 2 4 1 Combat Bots Only 4 | . 2 4 1 Max Kills in Single Turn 1 | . 1 1 1 Gunslinging . | . . . . Exploded . | . . . . Melee . | . . . . Uniques/NPCs Destroyed . | . . . . Combat | -11 -10 -10 -7 -------- Run | Yrd Mat Sub Rec Hostile Shots Fired 151 | . 42 28 81 Missed 44 | . 12 10 22 Hits 107 | . 30 18 59 Projectile 107 | . 30 18 59 AOE 1 | . . 1 . Critical Strikes 1 | . . 1 . Damage Taken 1185 | . 276 451 458 Core 252 | . 67 83 102 Absorbed by Shields . | . . . . Core Remaining (%) 100 | 100 . . . Volleys Fired 88 | . 36 43 9 Largest 2 | . 2 2 2 Hottest 120 | . 100 120 73 Shots Fired 144 | . 69 57 18 Gun 94 | . 66 28 . Cannon 44 | . . 26 18 Launcher . | . . . . Special 6 | . 3 3 . Kinetic 99 | . 59 22 18 Thermal 32 | . 3 29 . Explosive . | . . . . Electromagnetic 13 | . 7 6 . Robot Hit Streak 16 | . 6 10 16 Robot Miss Streak 6 | . 6 3 1 Penetration Max . | . . . . Secondary Targets 4 | . 2 2 . Max Gunslinging Chain 1 | . 1 1 . Shots Hit Robots 78 | . 31 30 17 Core Hits 31 | . 14 13 4 Critical Kills 1 | . . 1 . Critical Parts Destroyed . | . . . . Critical Strikes 2 | . . 1 1 Meltdown 1 | . . 1 . Blast 1 | . . . 1 Melee Attacks . | . . . . Impact . | . . . . Slashing . | . . . . Piercing . | . . . . Sneak Attacks . | . . . . Combat Hostiles . | . . . . Follow-up Attacks . | . . . . Damage Inflicted 1490 | . 331 745 414 Guns 561 | . 331 230 . Cannons 929 | . . 515 414 Explosions . | . . . . Melee . | . . . . Ramming . | . . . . Kinetic 856 | . 266 176 414 Thermal 515 | . . 515 . Explosive . | . . . . Electromagnetic 119 | . 65 54 . Impact . | . . . . Slashing . | . . . . Piercing . | . . . . Highest Corruption . | . . . . Average Corruption . | . . . . Corruption Purged . | . . . . Corruption Blocked . | . . . . Overload Shots 6 | . . 6 . Overflow Damage . | . . . . Projectiles . | . . . . Explosions . | . . . . Melee . | . . . . Knockbacks . | . . . . Impact . | . . . . Kinetic . | . . . . Secondary . | . . . . Self-Inflicted Damage . | . . . . Shots . | . . . . Rammed . | . . . . Targets Rammed . | . . . . Kicked . | . . . . Crushed . | . . . . Highest Temperature 249 | . 58 249 157 Average Temperature 66 | . 23 95 82 Received Heat Transfer 553 | . 66 331 156 Siege Activations . | . . . . Martial Activations . | . . . . Shielding Activations . | . . . . Robots Disrupted . | . . . . Combat Hostiles . | . . . . Robots Corrupted . | . . . . Combat Hostiles . | . . . . Parts Fried . | . . . . Impact Corruptions . | . . . . Robots Melted 1 | . . 1 . Combat Hostiles 1 | . . 1 . Parts Melted 1 | . . 1 . Heat Transferred . | . . . . Parts Sabotaged . | . . . . Parts Stolen . | . . . . Parts Stripped . | . . . . Power Chain Reactions . | . . . . Alert | -11 -10 -10 -7 ------- Run | Yrd Mat Sub Rec Maximum Alert Level . | . . . . Low Security (%) 100 | 100 100 . 100 Level 1 . | . . . . Level 2 . | . . . . Level 3 . | . . . . Level 4 . | . . . . Level 5 . | . . . . High Security . | . . . . Max Security . | . . . . Peak Influence 85 | . 85 . 20 Initial . | . . . . Average 15 | . 32 . . Influence Increases 288 | . 241 20 27 Destroy 0b10 Robot/C 180 | . 140 20 20 Destroy 0b10 Robot/NC 10 | . 10 . . Destroy Leader 34 | . 34 . . Successful Hack 15 | . 9 . 6 Destroy Structure 4 | . 3 . 1 Lose Combat Pursuer 45 | . 45 . . Influence Decreases 288 | . 185 76 27 Entered New Map 28 | . . 28 . Time Decay 247 | . 183 48 16 Lost Part 13 | . 2 . 11 Squads Dispatched 3 | . 3 . . Investigation 1 | . 1 . . Extermination . | . . . . Reinforcement 2 | . 2 . . Assault . | . . . . Garrison . | . . . . Intercept . | . . . . Searches Triggered . | . . . . Construction Impeded . | . . . . Haulers Reinforced . | . . . . Active Scanning Responses . | . . . . Cargo Convoy Interrupts . | . . . . Stealth | -11 -10 -10 -7 --------- Run | Yrd Mat Sub Rec Distress Signals 1 | . 1 . . Communications Jammed . | . . . . Distress Signals . | . . . . Times Spotted 34 | . 18 14 2 Peak Tracking Total 7 | . 3 7 2 Tactical Retreats 3 | . 2 1 . Traps | -11 -10 -10 -7 ------- Run | Yrd Mat Sub Rec Traps Triggered 2 | . 2 . . Indirectly . | . . . . Trap Hack Attempts . | . . . . Triggered . | . . . . Disarmed . | . . . . Reprogrammed . | . . . . Reused . | . . . . Traps Extracted . | . . . . Installed . | . . . . Triggered . | . . . . Machines | -11 -10 -10 -7 ---------- Run | Yrd Mat Sub Rec Machines Disabled 1 | . . 1 . Max in Single Turn 1 | . . 1 . Machines Repaired . | . . . . Machines Dismantled . | . . . . Machines Sabotaged . | . . . . Overloaded Fab Kills . | . . . . Hacking | -11 -10 -10 -7 --------- Run | Yrd Mat Sub Rec Machines Accessed 9 | . 4 2 3 Terminals 7 | . 4 . 3 Fabricators . | . . . . Repair Stations . | . . . . Recycling Units . | . . . . Scanalyzers . | . . . . Garrison Access . | . . . . Total Hacks 36 | . 16 13 7 Successful 24 | . 9 13 2 Failed 11 | . 7 . 4 Catastrophic 3 | . 1 . 2 Database Lockouts 1 | . . . 1 Manual 8 | . . 8 . Terminals 23 | . 16 . 7 Fabricators . | . . . . Repair Stations . | . . . . Recycling Units . | . . . . Scanalyzers . | . . . . Garrison Access . | . . . . Terminal Hacks 24 | . 9 13 2 Record 19 | . 5 12 2 Emergency Access Points 1 | . 1 . . Dispatch Records 1 | . 1 . . Zone Layout 2 | . 2 . . Proto ID Catalog 1 | . . 1 . Fabricator Hacks . | . . . . Repair Station Hacks . | . . . . Recycling Unit Hacks . | . . . . Scanalyzer . | . . . . Garrison Access Hacks . | . . . . Unauthorized Hacks . | . . . . Terminals . | . . . . Fabricators . | . . . . Repair Stations . | . . . . Recycling Units . | . . . . Scanalyzers . | . . . . Garrison Access . | . . . . Data Cores Recovered . | . . . . Used . | . . . . Hacking Detections 6 | . 3 . 3 Full Trace Events . | . . . . Feedback Events . | . . . . Feedback Blocked . | . . . . Robot Schematics Acquired . | . . . . Robots Built . | . . . . Authchips . | . . . . Time . | . . . . Total Robot Build Rating . | . . . . Part Schematics Acquired . | . . . . Parts Built . | . . . . Authchips . | . . . . Time . | . . . . Total Part Build Rating . | . . . . Parts Repaired . | . . . . Time . | . . . . Parts Recycled . | . . . . Recycled Matter . | . . . . Retrieved Matter . | . . . . Retrieved Components . | . . . . Parts Scanalyzed . | . . . . Part Schematics Acquired . | . . . . Parts Damaged . | . . . . Bothacking | -11 -10 -10 -7 ------------ Run | Yrd Mat Sub Rec Used RIF Installer . | . . . . Robots Hacked . | . . . . Non-combat . | . . . . Combat . | . . . . Robot Hacks Applied . | . . . . Relay Couplers Released . | . . . . Fabnet Peak Effective % . | . . . . Robots Rewired . | . . . . Allies Hacked . | . . . . Hacks Repelled . | . . . . Allies | -11 -10 -10 -7 -------- Run | Yrd Mat Sub Rec Total Allies . | . . . . Largest Group . | . . . . Highest-Rated Group . | . . . . Highest-Rated Ally . | . . . . Total Orders . | . . . . Ally Attacks . | . . . . Total Damage . | . . . . Kills . | . . . . Allies Corrupted . | . . . . Allies Melted . | . . . . Intel | -11 -10 -10 -7 ------- Run | Yrd Mat Sub Rec Active Infowar (turns) 2228 | . 281 1427 520 Sensors 2228 | . 281 1427 520 Robot Analysis Total . | . . . . Derelict Logs Recovered 1 | . . 1 . Drone Launches . | . . . . Drone Recoveries . | . . . . Exploration | -11 -10 -10 -7 ------------- Run | Yrd Mat Sub Rec Turns Passed 2493 | 36 510 1427 520 Spaces Moved 1951 | 31 432 1102 386 Core 11 | 9 . 2 . Treads . | . . . . Legs 1399 | . . 1013 386 Wheels 541 | 22 432 87 . Hover . | . . . . Flight . | . . . . Fastest Speed 50 | 50 80 80 120 Average Speed 110 | 78 86 116 120 Slowest Speed 150 | 90 90 150 120 Overloaded Moves . | . . . . Propulsion Burnouts . | . . . . Robots Hopped . | . . . . Potential Cave-ins . | . . . . Cave-ins Triggered . | . . . . Exploration Rate (%) 50 | 4 74 61 63 Regions Visited 3 Branch Regions 2 Pre-discovered Areas 1 | . . 1 . Known Exits Taken . | . . . . Unknown Exits Taken 3 | 1 1 1 . Scrap Searched 2 | . . 2 . Spaces Dug 3 | . 3 . . Terrain Destroyed 12 | . 3 8 1 Melee . | . . . . Projectile 12 | . 3 8 1 AOE . | . . . . Terrain Rammed . | . . . . Walls Destroyed . | . . . . Machines Disabled . | . . . . Actions | -11 -10 -10 -7 --------- Run | Yrd Mat Sub Rec Total 2155 | 42 498 1191 424 Wait 21 | . 1 2 18 Move 1948 | 30 431 1101 386 Hop . | . . . . Pick Up 41 | 6 15 18 2 Fast Attach 1 | 1 . . . Attach 18 | 5 2 8 3 Detach 1 | . . 1 . Swap 15 | . 6 5 4 Drop 22 | . 7 13 2 Fire 88 | . 36 43 9 Melee . | . . . . Ram . | . . . . Kick . | . . . . Crush . | . . . . Escape Stasis . | . . . . Rewire . | . . . . Trap . | . . . . Miscellaneous . | . . . . Route ------- -11/Scrapyard -10/Materials (discovered 3 exits: [*Mat] / [*Min] / *Sub) -10/Subcaves (discovered 2 exits: [*Mat] / *Rec) -7/Recycling History --------- Turn | Location | Event 11 | -11/Scrapyard | Discovered new exit (range 16) 37 | -11/Scrapyard | Entered Materials 82 | -10/Materials | Discovered new exit (range 16) 305 | -10/Materials | Build established: Mutant 380 | -10/Materials | Discovered new exit (range 11) 539 | -10/Materials | Discovered new exit (range 13) 547 | -10/Materials | Entered Subcaves 613 | -10/Subcaves | Ambushed by swarm of Subdwellers 678 | -10/Subcaves | Lost 4 parts (1p2n1w) 681 | -10/Subcaves | Lost 3 allies 798 | -10/Subcaves | Learned Materials trap positions 822 | -10/Subcaves | Visited 4L-MR0's lab 837 | -10/Subcaves | Found Powered Cannon 842 | -10/Subcaves | Attached Powered Cannon, gained temporary slot: Power 1127 | -10/Subcaves | Shifting Twisted Machinery released Shrapnel Trap 1129 | -10/Subcaves | Shifting Twisted Machinery released Sub. Beam Cannon 1286 | -10/Subcaves | Build established: Scavenger-Mutant 1482 | -10/Subcaves | Learned location of Zion (-7) 1482 | -10/Subcaves | Met a Zionite searching for "candidates" 1501 | -10/Subcaves | Discovered new exit (range 14) 1616 | -10/Subcaves | Visited Clippyterm 1619 | -10/Subcaves | Learned Factory emergency access door positions 1619 | -10/Subcaves | Learned Factory stockpile data 1733 | -10/Subcaves | Ambushed by Subdweller buried in earth 1734 | -10/Subcaves | Core integrity fell below 50% 1807 | -10/Subcaves | Build established: Mutant 1854 | -10/Subcaves | Shifting Twisted Machinery released Sub. Beam Cannon 1856 | -10/Subcaves | A swath of the cavern ceiling suddenly collapsed 1877 | -10/Subcaves | Shifting Twisted Machinery released Mak. Kinetic Plating 1949 | -10/Subcaves | A swath of the cavern ceiling suddenly collapsed 1963 | -10/Subcaves | Discovered new exit (range 10) 1974 | -10/Subcaves | Entered Recycling 1975 | -7/Recycling | Met a Zionite searching for Scraptown 2479 | -7/Recycling | Core integrity fell below 20% 2494 | -7/Recycling | Destroyed by Y-54 Guardian with Flak Gun Last Messages --------------- organization formed in 2080, tasked with overseeing efforts to explore and colonize the [Solar System]. Fair bargaining mechanisms within the ISC fostered cooperation among members, and rapid advances were made within a short time span during the 21st century, culminating with the launch of the [Interstellar Exploration Fleet] in 2140. 02232_ Acquired Adv. Assault Cannon. 02235_ Dropped Sub. Beam Cannon. 02251_ R-06 Scavenger collects Sub. Beam Cannon. 02277_ Connecting with Recycling Unit... 02432_ Connecting with Terminal... 02441_ Y-54 Guardian springs to life. 02441_ Mic. Nuclear Core destroyed. 02471_ Y-54 Guardian suffers critical hit (Blast). 02471_ Y-54 Guardian destroyed. 02478_ R-06 Scavenger collects Imp. Heat Sink. 02485_ Ion Engine destroyed. Map ----- +----------------------------------------------------+ | ?????????????????????????????????????????????????? | | ?????????????????????????????????????????????????? | | ?????????????????????????????????????????????????? | | ?????????????????????????????????????????????????? | | ??????????????? ?????????????????????????????? | | ??????????????? ?????????????????????????????? | | ??????????????? ?????????????????????????????? | | ??????????????? ?????????????????????????????? | | ??????????????? ?????????????????????????????? | | ???????????????# #?????????????????????????????? | | ???????????????# #?????????????????????????????? | | ???????????????# ?????????????????????????????? | | ???????????????# % ##????????????????????????????? | | ???????????????# "?????????????????????????????? | | ???????????????# % ?????????????????????????????? | | ???????????????# #?????????????????????????????? | | ???????????????# #?????????????????????????????? | | ???##########??# #?????????????????????????????? | | ???# #?## ##????????????????????????????? | | ???# % #?# ?#????????????????????????????? | | ???#! !! #?# T" ?#????????????????????????????? | | ???# #?# " ############################## | | ???# = #?# %% ? | | ???# ??# #!! #%###########/############ | | ???# * ??#######! !#Y#??????# % #??????? | | ???? ! ! !?????????#####@#??????# #??????? | | ???? ???????########/######?# #??????? | | ????#+##/#???????# # #?#] = #??????? | | ????# #???????# r# #?# !%= #??????? | | ????# #???????# ?! = %r # #?# #??????? | | ????# ######### [r # #?# ! #??????? | | ????# ? +? # #?# ]#??????? | | ????# ### + #?# = #??????? | | ????# #?# ![ ! # ? #####+############# | | ????# #?# # ?? | | ????# #?########### | | ????# """ #???????????# | | ????# """ #######?????########### "" | | ????# """ # #???????????????# "" | | ????# # #??????????###??# "" | | ????# / #?########## #### | | ????# # #?# # | | ????# ### #### # #?# + "" | | ????# #?# #??# # ## # "" | | ????# #?# #??# # ### # "" | | ????# #?# #??# # #?######+##+##### #### | | ????# #?# #??# # #??????# #??# | | ????#+###+#### # #??????# ##+######+##### "" | | ????# # ## ####??????# # ## "" | | ????# + #?##?????????# # ## "" | +----------------------------------------------------+ Best States ------------- Heat Dissipation 25 Energy Generation 25 Energy Capacity 300 Matter Stores 300 Matter Capacity 300 Sight Range 16 Robot Scan Range 14 Terrain Scan Density 10 Evasion (%) 55 Item Schematics ----------------- None Robot Schematics ------------------ None Fabricated ------------ Nothing Repaired ---------- Nothing Alien Tech Used ----------------- None Achievements -------------- Librarian Challenges ------------ None Game ------ Seed AdvancedDisposableCasing Manual? 0 Play Time 01:29:38 Cumulative 7.1 hours Start 2025.08.14 @ 18:58:50 End 2025.08.14 @ 21:23:59 Sessions 1 Manual Loads 0 Difficulty Rogue Special Mode None Game No. 10 Rogue 10 Adventurer 0 Explorer 0 Win Type - Total 0 Types 0/0/0/0/0/0/0/0/0/0 Lore% 2 Gallery% 6 Achievement% 8 Wizard Run 0 Options --------- Layout 1 ASCII 0 Keyboard 0 Movement Numpad Keybinds 0 Fullscreen 1 Font 24/Smallcaps Map View 50x35 Zoom Use 0% Tactical HUD 1 Map Filters NONE Filters NONE Steam 1 RUN: 38e01afa-403a-4d10-9a00-61f3fc7b73e7